fUST/lending_fUST_20250213
["ID","MTS","AMOUNT","RATE_DAILY","PERIOD"]
[352884295,1739388646338,-1618.51,0.00012876,2]
[352884297,1739388646348,-764.39,0.00012876,2]
[352884299,1739388646358,-565.86,0.00012876,2]
[352884301,1739388646369,-6293.49,0.00012876,2]
[352884303,1739388646379,-592.2,0.00012876,2]
[352884305,1739388646389,-2335.86,0.00012876,2]
[352884307,1739388646399,-500.0,0.00012876,2]
[352884309,1739388646408,-849.4,0.00012876,2]
[352884311,1739388646417,-642.98,0.00012876,2]
[352884313,1739388646427,-500.0,0.00012876,2]
[352884315,1739388646437,-598.11,0.00012876,2]
[352884317,1739388646446,-500.0,0.00012876,2]
[352884319,1739388646455,-811.0,0.00012876,2]
[352884321,1739388646465,-3330.52,0.00012876,2]
[352884323,1739388646474,-1618.51,0.00013013,2]
[352884325,1739388646483,-764.39,0.00013013,2]
[352884327,1739388646493,-565.86,0.00013013,2]
[352884338,1739388646594,-6293.49,0.00013013,2]
[352884340,1739388646605,-2335.86,0.00013013,2]
[352884342,1739388646615,-500.0,0.00013013,2]
[352884344,1739388646624,-849.4,0.00013013,2]
[352884346,1739388646634,-642.98,0.00013013,2]
[352884348,1739388646644,-647.31576768,0.00013013,2]
[352884350,1739388646653,-598.11,0.00013013,2]
[352884352,1739388646664,-500.0,0.00013013,2]
[352884354,1739388646674,-811.0,0.00013013,2]
[352884356,1739388646684,-3330.52,0.00013013,2]
[352884358,1739388646693,-217.24781911,0.0001304,2]
[352884360,1739388646703,-1618.51,0.0001315,2]
[352884362,1739388646713,-764.39,0.0001315,2]
[352884365,1739388646724,-565.86,0.0001315,2]
[352884367,1739388646733,-6293.49,0.0001315,2]
[352884369,1739388646743,-2335.86,0.0001315,2]
[352884371,1739388646752,-500.0,0.0001315,2]
[352884372,1739388646761,-849.4,0.0001315,2]
[352884374,1739388646771,-642.98,0.0001315,2]
[352884376,1739388646781,-598.11,0.0001315,2]
[352884378,1739388646790,-500.0,0.0001315,2]
[352884380,1739388646800,-811.0,0.0001315,2]
[352884383,1739388646811,-3330.52,0.0001315,2]
[352884385,1739388646820,-222.16443291,0.00013179,2]
[352884387,1739388646860,-587.0,0.00013231,2]
[352884389,1739388646910,-1618.51,0.00013287,2]
[352884391,1739388647058,-764.39,0.00013287,2]
[352884393,1739388647184,-565.86,0.00013287,2]
[352884395,1739388647273,-6293.49,0.00013287,2]
[352884397,1739388647371,-2335.86,0.00013287,2]
[352884399,1739388647461,-500.0,0.00013287,2]
[352884401,1739388647550,-849.4,0.00013287,2]
[352884402,1739388647643,-642.98,0.00013287,2]
[352884405,1739388647778,-598.11,0.00013287,2]
[352884407,1739388647895,-255.92,0.00013287,2]
[352884409,1739388647989,-811.0,0.00013287,2]
[352884411,1739388648015,-3330.52,0.00013287,2]
[352884413,1739388648027,-500.0,0.0001333,2]
[352884415,1739388648039,-1618.51,0.00013424,2]
[352884417,1739388648049,-764.39,0.00013424,2]
[352884419,1739388648063,-565.86,0.00013424,2]
[352884420,1739388648073,-6293.49,0.00013424,2]
[352884422,1739388648082,-2335.86,0.00013424,2]
[352884424,1739388648091,-500.0,0.00013424,2]
[352884426,1739388648101,-849.4,0.00013424,2]
[352884428,1739388648110,-642.98,0.00013424,2]
[352884430,1739388648120,-598.11,0.00013424,2]
[352884432,1739388648130,-811.0,0.00013424,2]
[352884434,1739388648141,-3330.52,0.00013424,2]
[352884436,1739388648151,-1618.51,0.00013561,2]
[352884438,1739388648160,-764.39,0.00013561,2]
[352884440,1739388648170,-565.86,0.00013561,2]
[352884442,1739388648180,-6293.49,0.00013561,2]
[352884444,1739388648189,-2335.86,0.00013561,2]
[352884446,1739388648199,-297.33,0.00013561,2]
[352884448,1739388648209,-849.4,0.00013561,2]
[352884450,1739388648219,-642.98,0.00013561,2]
[352884452,1739388648231,-598.11,0.00013561,2]
[352884455,1739388648241,-811.0,0.00013561,2]
[352884456,1739388648254,-3330.52,0.00013561,2]
[352884458,1739388648265,-1618.51,0.00013698,2]
[352884461,1739388648275,-764.39,0.00013698,2]
[352884463,1739388648286,-565.86,0.00013698,2]
[352884465,1739388648295,-6293.49,0.00013698,2]
[352884467,1739388648306,-2335.86,0.00013698,2]
[352884469,1739388648317,-849.4,0.00013698,2]
[352884470,1739388648328,-642.98,0.00013698,2]
[352884473,1739388648343,-598.11,0.00013698,2]
[352884474,1739388648352,-811.0,0.00013698,2]
[352884476,1739388648362,-3330.52,0.00013698,2]
[352884478,1739388648372,-166.825597,0.00013699,2]
[352884480,1739388648382,-1618.51,0.00013835,2]
[352884482,1739388648392,-764.39,0.00013835,2]
[352884484,1739388648402,-565.86,0.00013835,2]
[352884486,1739388648412,-6293.49,0.00013835,2]
[352884488,1739388648421,-2335.86,0.00013835,2]
[352884490,1739388648431,-849.4,0.00013835,2]
[352884492,1739388648441,-642.98,0.00013835,2]
[352884494,1739388648451,-598.11,0.00013835,2]
[352884496,1739388648462,-811.0,0.00013835,2]
[352884498,1739388648472,-3330.52,0.00013835,2]
[352884500,1739388648482,-1618.51,0.00013972,2]
[352884502,1739388648491,-764.39,0.00013972,2]
[352884505,1739388648501,-565.86,0.00013972,2]
[352884507,1739388648511,-6293.49,0.00013972,2]
[352884509,1739388648521,-2335.86,0.00013972,2]
[352884511,1739388648531,-849.4,0.00013972,2]
[352884512,1739388648541,-642.98,0.00013972,2]
[352884514,1739388648551,-598.11,0.00013972,2]
[352884516,1739388648561,-811.0,0.00013972,2]
[352884518,1739388648579,-3330.52,0.00013972,2]
[352884520,1739388648588,-196.588,0.00014072,2]
[352884522,1739388648600,-1618.51,0.00014109,2]
[352884524,1739388648610,-764.53,0.00014109,2]
[352884526,1739388648620,-566.09,0.00014109,2]
[352884528,1739388648629,-6293.60612711,0.00014109,2]
[352884530,1739388648639,-2336.09,0.00014109,2]
[352884532,1739388648648,-849.47,0.00014109,2]
[352884534,1739388648658,-643.07,0.00014109,2]
[352884536,1739388648667,-598.29,0.00014109,2]
[352884538,1739388648678,-811.01,0.00014109,2]
[352884539,1739388648687,-3330.62,0.00014109,2]
[352884541,1739388648697,-60259.38738166,0.000145,2]
[352884543,1739388648707,-823.0,0.0001454,2]
[352884545,1739388648718,-151.0,0.000146,2]
[352884547,1739388648728,-154.84808822,0.00014895,2]
[352884549,1739388648739,-16331.49621402,0.00015,5]
[352884551,1739388648749,-377.52612374,0.00015,5]
[352884553,1739388648759,-1839.05,0.00015,2]
[352884555,1739388648770,-305.0,0.00015,5]
[352884557,1739388648781,-307973.88016786,0.00015,2]
[352884559,1739388648792,-4808.08044607,0.00015,2]
[352884561,1739388648803,-151.0,0.00015,2]
[352884563,1739388648815,-151.0,0.00015,2]
[352884565,1739388648824,-151.0,0.00015,2]
[352884567,1739388648835,-151.0,0.00015,2]
[352884569,1739388648845,-151.0,0.00015,2]
[352884571,1739388648855,-151.0,0.00015,2]
[352884573,1739388648865,-151.0,0.00015,2]
[352884575,1739388648875,-166.0,0.00015068,2]
[352884577,1739388648886,-151.0,0.000151,2]
[352884579,1739388648896,-306.0,0.00015571,2]
[352884581,1739388648906,-151.0,0.000156,2]
[352884583,1739388648916,-396.0,0.00015721,2]
[352884585,1739388648927,-2293.0,0.00015721,2]
[352884587,1739388648937,-197.0,0.00015979,2]
[352884589,1739388648948,-3000.0,0.00016,2]
[352884591,1739388648958,-3000.0,0.0001601,2]
[352884593,1739388648967,-3000.0,0.0001602,2]
[352884595,1739388648977,-3000.0,0.0001603,2]
[352884597,1739388648986,-3000.0,0.0001604,2]
[352884599,1739388648997,-3000.0,0.0001605,2]
[352884601,1739388649007,-3000.0,0.0001606,2]
[352884603,1739388649017,-3000.0,0.0001607,2]
[352884605,1739388649026,-500.0,0.0001607,2]
[352884607,1739388649036,-3000.0,0.0001608,2]
[352884609,1739388649045,-3000.0,0.0001609,2]
[352884611,1739388649055,-3000.0,0.000161,2]
[352884613,1739388649067,-3000.0,0.0001611,2]
[352884615,1739388649077,-3000.0,0.0001612,2]
[352884617,1739388649086,-3000.0,0.0001613,2]
[352884619,1739388649096,-466.22125259,0.00016137,2]
[352884621,1739388649106,-3000.0,0.0001614,2]
[352884623,1739388649116,-3000.0,0.0001615,2]
[352884625,1739388649128,-3000.0,0.0001616,2]
[352884627,1739388649139,-582.17,0.00016164,2]
[352884629,1739388649150,-3000.0,0.0001617,2]
[352884631,1739388649160,-3000.0,0.0001618,2]
[352884633,1739388649171,-3000.0,0.0001619,2]
[352884635,1739388649180,-3000.0,0.000162,2]
[352884637,1739388649191,-151.0,0.000162,2]
[352884639,1739388649203,-299.537,0.00016203,2]
[352884641,1739388649212,-3000.0,0.0001621,2]
[352884643,1739388649222,-3000.0,0.0001622,2]
[352884645,1739388649234,-3000.0,0.0001623,2]
[352884647,1739388649246,-3000.0,0.0001624,2]
[352884649,1739388649259,-3000.0,0.0001625,2]
[352884651,1739388649268,-3000.0,0.0001626,2]
[352884653,1739388649278,-3000.0,0.0001627,2]
[352884655,1739388649288,-3000.0,0.0001628,2]
[352884657,1739388649298,-3000.0,0.0001629,2]
[352884659,1739388649308,-3000.0,0.000163,2]
[352884661,1739388649319,-3000.0,0.0001631,2]
[352884662,1739388649329,-3000.0,0.0001632,2]
[352884664,1739388649341,-3000.0,0.0001633,2]
[352884666,1739388649351,-3000.0,0.0001634,2]
[352884668,1739388649361,-3000.0,0.0001635,2]
[352884670,1739388649371,-3000.0,0.0001636,2]
[352884672,1739388649382,-3000.0,0.0001637,2]
[352884674,1739388649392,-3000.0,0.0001638,2]
[352884676,1739388649401,-3000.0,0.0001639,2]
[352884678,1739388649411,-3000.0,0.000164,2]
[352884680,1739388649421,-3000.0,0.0001641,2]
[352884682,1739388649431,-3000.0,0.0001642,2]
[352884684,1739388649440,-3000.0,0.0001643,2]
[352884686,1739388649450,-500.0,0.00016438,2]
[352884688,1739388649460,-3000.0,0.0001644,2]
[352884690,1739388649470,-3478.105511,0.0001645,2]
[352884692,1739388649480,-305.0,0.000165,6]
[352884694,1739388649490,-353.3824819,0.00016732,2]
[352884696,1739388649500,-354.9109976,0.00016744,2]
[352884698,1739388649511,-354.9109976,0.00016755,2]
[352884700,1739388649521,-354.9109976,0.00016755,2]
[352884702,1739388649531,-354.9109976,0.00016755,2]
[352884704,1739388649541,-354.9109976,0.00016755,2]
[352884706,1739388649551,-354.9109976,0.00016755,2]
[352884708,1739388649564,-354.9109976,0.00016755,2]
[352884710,1739388649574,-354.9109976,0.00016755,2]
[352884712,1739388649584,-354.9109976,0.00016755,2]
[352884714,1739388649596,-5901.44473678,0.000168,2]
[352884716,1739388649607,-6559.54600587,0.000168,7]
[352884718,1739388649617,-250.0,0.00016956,2]
[352884720,1739388649627,-160.0,0.00016969,2]
[352884722,1739388649637,-156.0,0.00016969,2]
[352884724,1739388649647,-160.0,0.00016969,2]
[352884726,1739388649656,-156.0,0.00016969,2]
[352884728,1739388649665,-160.0,0.00016969,2]
[352884730,1739388649675,-156.0,0.00016969,2]
[352884732,1739388649684,-156.0,0.00016969,2]
[352884734,1739388649694,-160.0,0.00016969,2]
[352884736,1739388649703,-160.44,0.00016969,2]
[352884738,1739388649713,-160.0,0.00016969,2]
[352884740,1739388649723,-160.0,0.00016969,2]
[352884742,1739388649732,-160.0,0.00016969,2]
[352884744,1739388649742,-160.0,0.00016969,2]
[352884746,1739388649754,-160.0,0.00016969,2]
[352884748,1739388649763,-166.58,0.00016969,2]
[352884750,1739388649775,-174.6228158,0.00016977,2]
[352884752,1739388649785,-22610.11109123,0.00016978,2]
[352884754,1739388649794,-500.0,0.00016986,3]
[352884756,1739388649805,-3595.54670377,0.0001699,2]
[352884769,1739388649917,-2000.0,0.00017,2]
[352884771,1739388649927,-189.0,0.00017,2]
[352884773,1739388649937,-2000.0,0.00017,2]
[352884775,1739388649947,-157.25,0.00017,31]
[352884777,1739388649956,-157.25,0.00017,31]
[352884779,1739388649966,-157.25,0.00017,31]
[352884781,1739388649976,-157.25,0.00017,31]
[352884783,1739388649985,-157.25,0.00017,31]
[352884785,1739388649996,-157.25,0.00017,31]
[352884787,1739388650006,-813.6758024,0.00017,2]
[352884789,1739388650017,-49650.36982926,0.00017,2]
[352884792,1739388650026,-70000.0,0.00017,2]
[352884793,1739388650036,-996.40488213,0.00017045,2]
[352884795,1739388650046,-154.84808822,0.00017072,2]
[352884797,1739388650056,-51796.2031083,0.00017077,2]
[352884799,1739388650066,-151.0,0.00017077,2]
[352884801,1739388650076,-293.652114,0.00017077,2]
[352884803,1739388650085,-151.0,0.00017077,2]
[352884805,1739388650095,-151.0,0.00017077,2]
[352884807,1739388650105,-151.0,0.00017077,2]
[352884809,1739388650115,-151.0,0.00017077,2]
[352884811,1739388650127,-153.0,0.00017097,2]
[352884813,1739388650137,-316.0,0.000171,2]
[352884815,1739388650147,-160.0,0.00017123,3]
[352884817,1739388650157,-169.52694022,0.00017123,5]
[352884819,1739388650167,-226.38596952,0.00017139,7]
[352884821,1739388650176,-996.40488212,0.0001714,2]
[352884823,1739388650186,-244849.67939896,0.00017145,2]
[352884834,1739388650282,-44243.81668006,0.00017145,2]
[352884836,1739388650295,-500.0,0.00017145,2]
[352884848,1739388650412,-500.0,0.00010958,2]
[352884851,1739388650422,-500.0,0.00011095,2]
[352884853,1739388650432,-500.0,0.00011232,2]
[352884855,1739388650442,-500.0,0.00011369,2]
[352884857,1739388650452,-500.0,0.00011506,2]
[352884859,1739388650462,-519.87,0.00012739,2]
[352884861,1739388650472,-519.87,0.00012876,2]
[352884863,1739388650481,-519.87,0.00013013,2]
[352884865,1739388650491,-111.83055228,0.0001315,2]
[352884867,1739388650504,-408.03944772,0.0001315,2]
[352884869,1739388650514,-519.87,0.00013287,2]
[352884871,1739388650524,-519.87,0.00013424,2]
[352884873,1739388650534,-98687.81401764,0.00017145,2]
[352884875,1739388650543,-151.0,0.00017145,2]
[352884877,1739388650553,-151.0,0.00017145,2]
[352884879,1739388650564,-151.0,0.00017145,2]
[352884881,1739388650573,-151.0,0.00017145,2]
[352884883,1739388650583,-197.182694,0.00017145,2]
[352884885,1739388650593,-197.182694,0.00017145,2]
[352884887,1739388650603,-151.0,0.00017145,2]
[352884889,1739388650613,-967.433568,0.00017145,2]
[352884892,1739388650624,-967.433568,0.00017145,2]
[352884893,1739388650634,-151.0,0.00017145,2]
[352884895,1739388650644,-226.541106,0.00017145,2]
[352884898,1739388650654,-171.284929,0.00017145,2]
[352884900,1739388650664,-151.0,0.00017145,2]
[352884902,1739388650674,-171.284929,0.00017145,2]
[352884904,1739388650684,-151.0,0.00017145,2]
[352884906,1739388650693,-151.0,0.00017145,2]
[352884908,1739388650703,-270.400347,0.00017145,2]
[352884910,1739388650713,-270.400347,0.00017145,2]
[352884912,1739388650723,-151.0,0.00017145,2]
[352884914,1739388650735,-151.0,0.00017145,2]
[352884916,1739388650745,-808.043303,0.00017145,2]
[352884918,1739388650754,-151.0,0.00017145,2]
[352884919,1739388650764,-151.0,0.00017145,2]
[352884920,1739388650774,-808.043303,0.00017145,2]
[352884921,1739388650784,-151.0,0.00017145,2]
[352884922,1739388650795,-151.0,0.00017145,2]
[352884923,1739388650804,-151.0,0.00017145,2]
[352884924,1739388650815,-151.0,0.00017145,2]
[352884925,1739388650826,-205.788585,0.00017145,2]
[352884926,1739388650835,-205.788585,0.00017145,2]
[352884927,1739388650845,-151.0,0.00017145,2]
[352884928,1739388650855,-151.0,0.00017145,2]
[352884929,1739388650865,-306.919971,0.00017145,2]
[352884930,1739388650875,-306.919971,0.00017145,2]
[352884931,1739388650885,-151.0,0.00017145,2]
[352884932,1739388650895,-151.0,0.00017145,2]
[352884933,1739388650905,-151.0,0.00017145,2]
[352884935,1739388650915,-151.0,0.00017145,2]
[352884937,1739388650926,-151.0,0.00017145,2]
[352884939,1739388650936,-202.89519,0.00017145,2]
[352884941,1739388650946,-151.0,0.00017145,2]
[352884943,1739388650956,-151.0,0.00017145,2]
[352884945,1739388650966,-170.471932,0.00017145,2]
[352884947,1739388650976,-170.471932,0.00017145,2]
[352884949,1739388650986,-163.936146,0.00017145,2]
[352884951,1739388650996,-163.936146,0.00017145,2]
[352884953,1739388651006,-151.0,0.00017145,2]
[352884955,1739388651016,-151.0,0.00017145,2]
[352884957,1739388651025,-151.0,0.00017145,2]
[352884959,1739388651035,-151.0,0.00017145,2]
[352884961,1739388651046,-151.0,0.00017145,2]
[352884964,1739388651056,-151.0,0.00017145,2]
[352884966,1739388651067,-791.31005317,0.00017148,2]
[352884968,1739388651077,-500.0,0.00017149,2]
[352884970,1739388651086,-500.0,0.00017149,2]
[352884972,1739388651095,-151.0,0.00017161,2]
[352884974,1739388651105,-151.0,0.00017161,2]
[352884976,1739388651114,-154.024592,0.00017161,2]
[352884978,1739388651124,-151.0,0.00017161,2]
[352884980,1739388651134,-151.0,0.00017161,2]
[352884981,1739388651144,-151.0,0.00017161,2]
[352884983,1739388651153,-151.0,0.00017161,2]
[352884985,1739388651163,-172.632684,0.00017161,2]
[352884987,1739388651172,-151.0,0.00017161,2]
[352884989,1739388651182,-151.0,0.00017161,2]
[352884991,1739388651191,-151.0,0.00017161,2]
[352884993,1739388651201,-151.0,0.00017161,2]
[352884995,1739388651211,-151.0,0.00017161,2]
[352884997,1739388651220,-151.0,0.00017161,2]
[352884999,1739388651230,-151.0,0.00017161,2]
[352885001,1739388651240,-151.0,0.00017161,2]
[352885003,1739388651253,-151.0,0.00017161,2]
[352885005,1739388651264,-151.0,0.00017161,2]
[352885007,1739388651274,-151.0,0.00017161,2]
[352885009,1739388651284,-151.0,0.00017161,2]
[352885011,1739388651295,-295.932404,0.00017161,2]
[352885013,1739388651305,-151.0,0.00017161,2]
[352885016,1739388651316,-151.0,0.00017161,2]
[352885018,1739388651327,-151.0,0.00017161,2]
[352885020,1739388651338,-151.0,0.00017161,2]
[352885021,1739388651348,-500.0,0.00017166,5]
[352885023,1739388651359,-500.0,0.00017166,5]
[352885026,1739388651370,-500.0,0.00017166,5]
[352885028,1739388651379,-500.0,0.00017166,5]
[352885030,1739388651388,-500.0,0.00017166,5]
[352885032,1739388651398,-500.0,0.00017166,5]
[352885033,1739388651407,-500.0,0.00017166,5]
[352885035,1739388651416,-500.0,0.00017166,5]
[352885037,1739388651426,-500.0,0.00017166,5]
[352885039,1739388651436,-500.0,0.00017166,5]
[352885041,1739388651445,-500.0,0.00017166,5]
[352885043,1739388651455,-241.651881,0.00017166,5]
[352885045,1739388651465,-500.0,0.00017166,5]
[352885047,1739388651474,-500.0,0.00017166,5]
[352885049,1739388651483,-500.0,0.00017166,5]
[352885051,1739388651493,-500.0,0.00017166,5]
[352885053,1739388651502,-500.0,0.00017166,5]
[352885055,1739388651511,-500.0,0.00017166,5]
[352885057,1739388651521,-500.0,0.00017166,5]
[352885059,1739388651531,-500.0,0.00017166,5]
[352885061,1739388651541,-266.0,0.00017166,5]
[352885063,1739388651550,-500.0,0.00017167,2]
[352885065,1739388651560,-150.23,0.00017167,2]
[352885067,1739388651569,-500.0,0.00017167,2]
[352885069,1739388651580,-500.0,0.00017167,2]
[352885071,1739388651590,-150.21,0.00017167,2]
[352885073,1739388651600,-500.0,0.00017167,2]
[352885075,1739388651610,-150.21,0.00017167,2]
[352885077,1739388651619,-500.0,0.00017167,2]
[352885079,1739388651629,-500.0,0.00017167,2]
[352885081,1739388651639,-500.0,0.00017167,2]
[352885083,1739388651649,-500.0,0.00017167,2]
[352885086,1739388651659,-150.21,0.00017167,2]
[352885088,1739388651669,-883.0,0.00017167,2]
[352885090,1739388651679,-150.21,0.00017167,2]
[352885092,1739388651689,-150.21,0.00017167,2]
[352885094,1739388651698,-500.0,0.0001717,2]
[352885096,1739388651708,-50896.32669568,0.00017172,61]
[352885099,1739388651728,-519.87,0.00013561,2]
[352885100,1739388651737,-2713.74937894,0.00017172,61]
[352885128,1739388651998,-500.0,0.00011643,2]
[352885130,1739388652008,-500.0,0.0001178,2]
[352885132,1739388652018,-500.0,0.00011917,2]
[352885134,1739388652027,-500.0,0.00012054,2]
[352885136,1739388652036,-500.0,0.00012191,2]
[352885138,1739388652046,-500.0,0.00012328,2]
[352885140,1739388652056,-500.0,0.00012465,2]
[352885142,1739388652069,-500.0,0.00012602,2]
[352885144,1739388652078,-500.0,0.00012739,2]
[352885146,1739388652088,-519.87,0.00013698,2]
[352885148,1739388652098,-519.87,0.00013835,2]
[352885150,1739388652107,-519.87,0.00013972,2]
[352885152,1739388652117,-519.99,0.00014109,2]
[352885154,1739388652126,-145.45735,0.00017145,2]
[352885156,1739388652139,-5.54265,0.00017145,2]
[352885158,1739388652148,-53250.54648377,0.00017172,61]
[352885160,1739388652160,-262.248948,0.00017172,61]
[352885163,1739388652171,-56251.99869467,0.00017172,61]
[352885292,1739388726625,1353.88824662,0.00010436,2]
[352885298,1739389627129,-250.0,9.77e-05,2]
[352885299,1739389627151,-136.31095913,9.932e-05,2]
[352885300,1739389645094,-803.98372167,9.932e-05,2]
[352885301,1739389645116,-300.0,9.999e-05,2]
[352885302,1739389645136,-786.43946194,0.0001,2]
[352885303,1739389750185,-300.0,9.999e-05,2]
[352885304,1739389750208,-1249.56053806,0.0001,2]
[352885305,1739389750230,-2036.0,0.0001,2]
[352885306,1739389750254,-2036.0,0.0001,2]
[352885307,1739389750276,-2036.0,0.0001,2]
[352885308,1739389750297,-2036.0,0.0001,2]
[352885309,1739389750321,-2036.0,0.0001,2]
[352885310,1739389750343,-280.62380415,0.0001,2]
[352885311,1739389750364,-9351.7799312,0.00010024,2]
[352885359,1739389832145,-3265.24260668,0.00010655,2]
[352885360,1739389832156,-400.0,0.00010685,2]
[352885361,1739389832166,-357.33897753,0.00010858,2]
[352885362,1739389832177,-300.0,0.00010948,2]
[352885363,1739389832187,-2836.95387692,0.00010948,2]
[352885364,1739389832200,-4601.74365586,0.00010948,2]
[352885365,1739389832210,-771.2096871,0.00010957,2]
[352885366,1739389832220,-500.0,0.00010957,2]
[352885367,1739389832229,-211.83234199,0.00010957,2]
[352885368,1739389832239,-500.0,0.00010957,2]
[352885369,1739389832249,-500.0,0.00010957,2]
[352885372,1739389832259,-440.45280101,0.00010957,2]
[352885374,1739389832268,-500.0,0.00010957,2]
[352885375,1739389832278,-500.0,0.00010957,2]
[352885376,1739389832288,-500.0,0.00010957,2]
[352885377,1739389832298,-500.0,0.00010957,2]
[352885378,1739389832308,-500.0,0.00010957,2]
[352885379,1739389832318,-375.29103005,0.00010957,2]
[352885380,1739389832328,-500.0,0.00010957,2]
[352885381,1739389832338,-500.0,0.00010957,2]
[352885382,1739389832348,-500.0,0.00010957,2]
[352885383,1739389832358,-500.0,0.00010957,2]
[352885384,1739389832368,-208.36567,0.00010957,2]
[352885385,1739389832378,-500.0,0.00010957,2]
[352885386,1739389832387,-500.0,0.00010957,2]
[352885387,1739389832399,-159.5736635,0.00010957,2]
[352885388,1739389832409,-500.0,0.00010957,2]
[352885389,1739389832419,-500.0,0.00010957,2]
[352885390,1739389832429,-500.0,0.00010957,2]
[352885391,1739389832438,-500.0,0.00010957,2]
[352885392,1739389832448,-500.0,0.00010957,2]
[352885393,1739389832458,-363.18824909,0.00010957,2]
[352885394,1739389832467,-542.22037632,0.00010958,2]
[352885395,1739389832477,-500.0,0.00010958,2]
[352885396,1739389832487,-509.88848356,0.00010958,2]
[352885397,1739389832497,-500.0,0.00010958,2]
[352885398,1739389832506,-500.0,0.00010958,2]
[352885399,1739389832516,-500.0,0.00010958,2]
[352885400,1739389832526,-501.11471856,0.00010958,2]
[352885401,1739389832536,-500.0,0.00010958,2]
[352885402,1739389832699,-500.0,0.00010958,2]
[352885403,1739389832711,-500.78934066,0.00010958,2]
[352885404,1739389832720,-500.0,0.00010958,2]
[352885405,1739389832730,-500.0,0.00010958,2]
[352885406,1739389832740,-500.0,0.00010958,2]
[352885407,1739389832756,-500.0,0.00010958,2]
[352885408,1739389832766,-500.0,0.00010958,2]
[352885409,1739389832775,-500.0,0.00010958,2]
[352885410,1739389832785,-500.0,0.00010958,2]
[352885411,1739389832796,-367.64546138,0.00010958,2]
[352885412,1739389832805,-500.0,0.00010958,2]
[352885413,1739389832815,-500.0,0.00010958,2]
[352885414,1739389832824,-500.0,0.00010958,2]
[352885415,1739389832835,-500.0,0.00010958,2]
[352885416,1739389832845,-500.0,0.00010958,2]
[352885417,1739389832855,-500.90210763,0.00010958,2]
[352885418,1739389832865,-500.0,0.00010958,2]
[352885419,1739389832874,-500.0,0.00010958,2]
[352885420,1739389832884,-502.57138389,0.00010958,2]
[352885421,1739389832895,-500.0,0.00010958,2]
[352885422,1739389832905,-500.0,0.00010958,2]
[352885423,1739389832915,-500.0,0.00010958,2]
[352885424,1739389832924,-500.0,0.00010958,2]
[352885425,1739389832934,-500.0,0.00010958,2]
[352885426,1739389832943,-500.0,0.00010958,2]
[352885427,1739389832953,-500.0,0.00010958,2]
[352885428,1739389832963,-500.0,0.00010958,2]
[352885429,1739389832972,-500.0,0.00010958,2]
[352885430,1739389832983,-500.0,0.00010958,2]
[352885431,1739389832993,-500.0,0.00010958,2]
[352885432,1739389833002,-500.0,0.00010958,2]
[352885433,1739389833012,-500.0,0.00010958,2]
[352885434,1739389833021,-500.0,0.00010958,2]
[352885435,1739389833032,-500.0,0.00010958,2]
[352885436,1739389833042,-500.0,0.00010958,2]
[352885437,1739389833052,-202.68673891,0.00010958,2]